fUST/lending_fUST_20250722
["ID","MTS","AMOUNT","RATE_DAILY","PERIOD"]
[373886222,1753139442617,-460.0,0.00017871,2]
[373886224,1753139442627,-460.0,0.00017871,2]
[373886225,1753139442636,-460.0,0.00017871,2]
[373886227,1753139442649,-522.71393349,0.00017871,2]
[373886230,1753139442658,-460.0,0.00017871,2]
[373886232,1753139442667,-460.0,0.00017871,2]
[373886234,1753139442677,-460.0,0.00017871,2]
[373886236,1753139442686,-500.0,0.00017871,2]
[373886238,1753139442696,-500.0,0.00017871,2]
[373886240,1753139442706,-460.0,0.00017871,2]
[373886242,1753139442715,-460.0,0.00017871,2]
[373886244,1753139442725,-460.0,0.00017871,2]
[373886246,1753139442734,-460.0,0.00017871,2]
[373886248,1753139442743,-460.0,0.00017872,2]
[373886249,1753139442752,-460.0,0.00017872,2]
[373886251,1753139442761,-460.60718211,0.00017872,2]
[373886253,1753139442770,-460.40829595,0.00017872,2]
[373886255,1753139442780,-460.0,0.00017872,2]
[373886257,1753139442789,-500.0,0.00017872,2]
[373886260,1753139442800,-460.0,0.00017872,2]
[373886262,1753139442811,-460.20307646,0.00017872,2]
[373886265,1753139442823,-460.0,0.00017872,2]
[373886267,1753139442832,-460.0,0.00017872,2]
[373886269,1753139442841,-460.0,0.00017872,2]
[373886271,1753139442850,-460.0,0.00017872,2]
[373886273,1753139442860,-558.7606319,0.00017872,2]
[373886275,1753139442870,-460.0,0.00017872,2]
[373886277,1753139442879,-462.93561229,0.00017872,2]
[373886279,1753139442891,-460.0,0.00017872,2]
[373886281,1753139442901,-460.70945425,0.00017872,2]
[373886283,1753139442910,-460.0,0.00017872,2]
[373886285,1753139442919,-460.0,0.00017872,2]
[373886287,1753139442928,-460.0,0.00017872,2]
[373886289,1753139442938,-460.0,0.00017872,2]
[373886291,1753139442947,-460.0,0.00017872,2]
[373886293,1753139442956,-460.0,0.00017872,2]
[373886295,1753139442966,-460.0,0.00017872,2]
[373886297,1753139442976,-460.0,0.00017872,2]
[373886299,1753139442985,-460.0,0.00017872,2]
[373886301,1753139442995,-460.0,0.00017872,2]
[373886303,1753139443005,-460.0,0.00017872,2]
[373886305,1753139443014,-460.0,0.00017872,2]
[373886307,1753139443023,-460.0,0.00017872,2]
[373886309,1753139443033,-460.0,0.00017872,2]
[373886311,1753139443042,-460.0,0.00017872,2]
[373886313,1753139443052,-460.0,0.00017872,2]
[373886315,1753139443062,-500.0,0.00017872,2]
[373886318,1753139443071,-460.0,0.00017872,2]
[373886320,1753139443080,-460.0,0.00017872,2]
[373886322,1753139443089,-460.0,0.00017872,2]
[373886324,1753139443098,-460.0,0.00017872,2]
[373886326,1753139443107,-460.0,0.00017872,2]
[373886328,1753139443117,-460.0,0.00017872,2]
[373886330,1753139443126,-460.0,0.00017872,2]
[373886332,1753139443135,-460.0,0.00017872,2]
[373886334,1753139443144,-464.67769764,0.00017872,2]
[373886336,1753139443153,-460.0,0.00017872,2]
[373886338,1753139443163,-460.0,0.00017872,2]
[373886340,1753139443172,-460.0,0.00017872,2]
[373886342,1753139443182,-460.0,0.00017872,2]
[373886344,1753139443192,-460.0,0.00017872,2]
[373886346,1753139443202,-460.0,0.00017872,2]
[373886348,1753139443212,-460.0,0.00017872,2]
[373886350,1753139443221,-460.0,0.00017872,2]
[373886352,1753139443230,-460.0,0.00017872,2]
[373886354,1753139443239,-460.0,0.00017872,2]
[373886356,1753139443248,-460.0,0.00017872,2]
[373886358,1753139443257,-498.78556739,0.00017872,2]
[373886360,1753139443267,-460.0,0.00017872,2]
[373886362,1753139443275,-460.0,0.00017872,2]
[373886364,1753139443284,-460.0,0.00017872,2]
[373886366,1753139443294,-460.0,0.00017872,2]
[373886368,1753139443303,-460.0,0.00017872,2]
[373886370,1753139443312,-460.0,0.00017872,2]
[373886372,1753139443321,-460.0,0.00017872,2]
[373886374,1753139443331,-500.0,0.00017872,2]
[373886377,1753139443340,-460.0,0.00017872,2]
[373886380,1753139443349,-460.0,0.00017872,2]
[373886383,1753139443359,-500.0,0.00017872,2]
[373886386,1753139443369,-460.0,0.00017872,2]
[373886389,1753139443378,-460.0,0.00017872,2]
[373886391,1753139443387,-460.0,0.00017872,2]
[373886393,1753139443397,-5403.16,0.00017872,2]
[373886395,1753139443407,-1332.35,0.00017872,2]
[373886397,1753139443416,-460.0,0.00017872,2]
[373886399,1753139443426,-506.14999002,0.00017873,2]
[373886401,1753139443435,-500.0,0.00017873,2]
[373886403,1753139443444,-500.0,0.00017873,2]
[373886405,1753139443453,-500.0,0.00017873,2]
[373886407,1753139443463,-500.0,0.00017873,2]
[373886409,1753139443473,-502.05026717,0.00017873,2]
[373886411,1753139443483,-500.0,0.00017873,2]
[373886413,1753139443493,-326.6286965,0.00017873,2]
[373886415,1753139443503,-500.0,0.00017873,2]
[373886417,1753139443513,-500.0,0.00017873,2]
[373886419,1753139443522,-500.0,0.00017873,2]
[373886422,1753139443532,-500.0,0.00017873,2]
[373886424,1753139443541,-473.1992353,0.00017873,2]
[373886426,1753139443550,-504.73741654,0.00017873,2]
[373886428,1753139443559,-500.0,0.00017873,2]
[373886430,1753139443568,-500.0,0.00017873,2]
[373886432,1753139443578,-571.94984231,0.00017873,2]
[373886434,1753139443587,-500.0,0.00017873,2]
[373886436,1753139443596,-500.0,0.00017873,2]
[373886438,1753139443606,-315.50837465,0.00017873,2]
[373886440,1753139443614,-500.0,0.00017873,2]
[373886442,1753139443624,-502.26266064,0.00017873,2]
[373886443,1753139443634,-460.0,0.00017884,2]
[373886445,1753139443643,-312.02226483,0.00017884,2]
[373886447,1753139443654,-500.0,0.00017885,2]
[373886450,1753139443663,-500.0,0.00017887,2]
[373886451,1753139443673,-500.0,0.00017887,2]
[373886453,1753139443682,-500.0,0.00017888,2]
[373886455,1753139443692,-500.0,0.00017888,2]
[373886457,1753139443702,-500.0,0.00017888,2]
[373886459,1753139443712,-264.39802173,0.00017889,2]
[373886462,1753139443722,-460.0,0.00017889,2]
[373886464,1753139443731,-257.15447415,0.00017889,2]
[373886466,1753139443740,-203.88558554,0.00017889,2]
[373886467,1753139443750,-460.0,0.00017889,2]
[373886469,1753139443760,-460.0,0.00017889,2]
[373886471,1753139443769,-500.0,0.00017889,2]
[373886474,1753139443779,-500.0,0.00017889,2]
[373886476,1753139443789,-500.0,0.00017889,2]
[373886485,1753139443878,-1928.03,0.00017889,2]
[373886487,1753139443888,-448.04133828,0.00017889,2]
[373886489,1753139443898,-3077.94,0.00017889,2]
[373886491,1753139443908,-460.0,0.00017889,2]
[373886493,1753139443918,-151.0,0.00017889,2]
[373886495,1753139443927,-151.0,0.00017889,2]
[373886497,1753139443937,-249.73,0.0001789,2]
[373886499,1753139443947,-500.0,0.0001789,2]
[373886501,1753139443956,-500.0,0.0001789,2]
[373886503,1753139443966,-500.0,0.0001789,2]
[373886505,1753139443975,-500.0,0.0001789,2]
[373886507,1753139443985,-2419.85,0.0001789,2]
[373886509,1753139443994,-594.18,0.0001789,2]
[373886511,1753139444004,-460.0,0.0001789,2]
[373886513,1753139444013,-1300.4,0.0001789,2]
[373886515,1753139444023,-500.0,0.00017891,2]
[373886517,1753139444032,-1869.06,0.00017891,2]
[373886519,1753139444042,-460.0,0.00017891,2]
[373886521,1753139444051,-460.0,0.00017891,2]
[373886523,1753139444062,-460.0,0.00017891,2]
[373886525,1753139444071,-2229.99493291,0.00017892,2]
[373886527,1753139444080,-500.0,0.00017892,2]
[373886529,1753139444090,-500.0,0.00017893,2]
[373886531,1753139444099,-7714.86564272,0.000179,2]
[373886533,1753139444109,-150.0,0.00018,2]
[373886535,1753139444119,-3801.642,0.00018025,2]
[373886537,1753139444128,-215.0738,0.00018025,2]
[373886539,1753139444138,-151.0,0.00018025,2]
[373886541,1753139444147,-151.0,0.00018025,2]
[373886543,1753139444156,-151.0,0.00018025,2]
[373886545,1753139444166,-151.0,0.00018025,2]
[373886547,1753139444175,-151.0,0.00018025,2]
[373886549,1753139444184,-151.0,0.00018025,2]
[373886551,1753139444193,-151.0,0.00018025,2]
[373886553,1753139444203,-151.0,0.00018025,2]
[373886555,1753139444212,-151.0,0.00018025,2]
[373886556,1753139444221,-151.0,0.00018025,2]
[373886558,1753139444230,-151.0,0.00018025,2]
[373886560,1753139444240,-151.0,0.00018025,2]
[373886562,1753139444249,-151.0,0.00018025,2]
[373886564,1753139444258,-151.0,0.00018025,2]
[373886566,1753139444267,-151.0,0.00018025,2]
[373886568,1753139444276,-151.0,0.00018025,2]
[373886570,1753139444285,-151.0,0.00018025,2]
[373886572,1753139444295,-151.0,0.00018025,2]
[373886574,1753139444304,-151.0,0.00018025,2]
[373886576,1753139444313,-151.0,0.00018025,2]
[373886578,1753139444322,-151.0,0.00018025,2]
[373886580,1753139444332,-151.0,0.00018025,2]
[373886582,1753139444341,-151.0,0.00018025,2]
[373886584,1753139444351,-151.0,0.00018025,2]
[373886586,1753139444360,-151.0,0.00018025,2]
[373886588,1753139444370,-151.0,0.00018025,2]
[373886590,1753139444379,-151.0,0.00018025,2]
[373886592,1753139444399,-151.0,0.00018025,2]
[373886594,1753139444413,-151.0,0.00018025,2]
[373886596,1753139444422,-151.0,0.00018025,2]
[373886598,1753139444432,-151.0,0.00018025,2]
[373886600,1753139444441,-151.0,0.00018025,2]
[373886602,1753139444450,-151.0,0.00018025,2]
[373886604,1753139444459,-151.0,0.00018025,2]
[373886606,1753139444469,-151.0,0.00018025,2]
[373886608,1753139444478,-151.0,0.00018025,2]
[373886610,1753139444487,-151.0,0.00018025,2]
[373886612,1753139444497,-151.0,0.00018025,2]
[373886614,1753139444507,-151.0,0.00018025,2]
[373886616,1753139444516,-151.0,0.00018025,2]
[373886618,1753139444525,-151.0,0.00018025,2]
[373886620,1753139444535,-151.0,0.00018025,2]
[373886622,1753139444544,-151.0,0.00018025,2]
[373886624,1753139444553,-151.0,0.00018025,2]
[373886626,1753139444562,-151.0,0.00018025,2]
[373886628,1753139444572,-151.0,0.00018025,2]
[373886630,1753139444581,-151.0,0.00018025,2]
[373886632,1753139444590,-151.0,0.00018025,2]
[373886634,1753139444599,-151.0,0.00018025,2]
[373886636,1753139444608,-151.0,0.00018025,2]
[373886638,1753139444618,-151.0,0.00018025,2]
[373886640,1753139444628,-151.0,0.00018025,2]
[373886642,1753139444637,-151.0,0.00018025,2]
[373886644,1753139444647,-151.0,0.00018025,2]
[373886646,1753139444656,-151.0,0.00018025,2]
[373886648,1753139444666,-151.0,0.00018025,2]
[373886649,1753139444675,-191.18568496,0.00018025,2]
[373886650,1753139444684,-151.0,0.00018025,2]
[373886651,1753139444693,-151.0,0.00018025,2]
[373886652,1753139444703,-151.0,0.00018025,2]
[373886653,1753139444712,-151.0,0.00018025,2]
[373886654,1753139444721,-151.0,0.00018025,2]
[373886655,1753139444731,-151.0,0.00018025,2]
[373886656,1753139444741,-151.0,0.00018025,2]
[373886657,1753139444750,-151.0,0.00018025,2]
[373886658,1753139444759,-151.0,0.00018025,2]
[373886659,1753139444768,-151.0,0.00018025,2]
[373886660,1753139444778,-151.0,0.00018025,2]
[373886661,1753139444787,-151.0,0.00018025,2]
[373886662,1753139444796,-151.0,0.00018025,2]
[373886663,1753139444806,-151.0,0.00018025,2]
[373886664,1753139444817,-151.0,0.00018025,2]
[373886665,1753139444827,-151.0,0.00018025,2]
[373886666,1753139444837,-151.0,0.00018025,2]
[373886667,1753139444846,-151.0,0.00018025,2]
[373886669,1753139444855,-151.0,0.00018025,2]
[373886670,1753139444865,-151.0,0.00018025,2]
[373886672,1753139444876,-151.0,0.00018025,2]
[373886675,1753139444886,-25000.0,0.00018025,2]
[373886677,1753139444905,-151.0,0.00018025,2]
[373886679,1753139444914,-151.0,0.00018025,2]
[373886681,1753139444924,-151.0,0.00018025,2]
[373886683,1753139444934,-151.0,0.00018025,2]
[373886685,1753139444944,-151.0,0.00018025,2]
[373886687,1753139444954,-8375.67731165,0.00018025,2]
[373886689,1753139444963,-151.0,0.00018025,2]
[373886691,1753139444972,-151.0,0.00018025,2]
[373886693,1753139444982,-151.0,0.00018025,2]
[373886695,1753139444992,-460.0,0.00018042,2]
[373886697,1753139445001,-168.0,0.00018054,2]
[373886699,1753139445010,-286.5259559,0.0001808,2]
[373886701,1753139445020,-347.0,0.0001811,2]
[373886703,1753139445030,-1531.71617545,0.00018112,2]
[373886705,1753139445039,-7714.86564251,0.00018141,2]
[373886707,1753139445048,-3390.2,0.00018142,2]
[373886709,1753139445057,-677.12,0.00018142,2]
[373886711,1753139445066,-460.0,0.00018142,2]
[373886713,1753139445076,-460.0,0.00018142,2]
[373886715,1753139445085,-2776.99,0.00018142,2]
[373886716,1753139445094,-397.16778392,0.00018142,2]
[373886718,1753139445103,-460.0,0.00018142,2]
[373886721,1753139445113,-460.0,0.00018142,2]
[373886722,1753139445123,-1434.52,0.00018142,2]
[373886724,1753139445133,-460.0,0.00018142,2]
[373886727,1753139445150,-509.94,0.00018142,2]
[373886728,1753139445160,-1906.08,0.00018142,2]
[373886731,1753139445169,-460.0,0.00018142,2]
[373886732,1753139445179,-460.0,0.00018142,2]
[373886735,1753139445189,-151.0,0.00018142,2]
[373886737,1753139445198,-856.14,0.00018142,2]
[373886739,1753139445208,-151.0,0.00018142,2]
[373886741,1753139445218,-460.0,0.00018143,2]
[373886742,1753139445227,-460.0,0.00018143,2]
[373886744,1753139445237,-460.0,0.00018143,2]
[373886746,1753139445246,-460.0,0.00018143,2]
[373886748,1753139445256,-460.0,0.00018143,2]
[373886750,1753139445266,-460.0,0.00018143,2]
[373886752,1753139445275,-468.92307314,0.00018143,2]
[373886754,1753139445285,-460.0,0.00018143,2]
[373886765,1753139445375,-461.34290555,0.00018143,2]
[373886767,1753139445385,-460.0,0.00018143,2]
[373886769,1753139445395,-460.0,0.00018143,2]
[373886771,1753139445404,-460.0,0.00018143,2]
[373886773,1753139445414,-460.0,0.00018143,2]
[373886775,1753139445424,-5053.42,0.00018143,2]
[373886777,1753139445433,-460.0,0.00018143,2]
[373886779,1753139445442,-460.0,0.00018143,2]
[373886781,1753139445452,-460.0,0.00018143,2]
[373886783,1753139445461,-460.0,0.00018143,2]
[373886785,1753139445471,-460.0,0.00018143,2]
[373886787,1753139445480,-460.0,0.00018143,2]
[373886789,1753139445490,-460.0,0.00018143,2]
[373886791,1753139445499,-460.0,0.00018143,2]
[373886793,1753139445508,-460.0,0.00018143,2]
[373886795,1753139445518,-716.6,0.00018143,2]
[373886797,1753139445527,-460.0,0.00018143,2]
[373886799,1753139445536,-460.0,0.00018143,2]
[373886801,1753139445545,-460.0,0.00018143,2]
[373886803,1753139445554,-460.0,0.00018143,2]
[373886805,1753139445563,-475.97,0.00018143,2]
[373886807,1753139445572,-460.0,0.00018143,2]
[373886809,1753139445582,-2571.87,0.00018143,2]
[373886811,1753139445591,-151.0,0.00018143,2]
[373886813,1753139445601,-735.27,0.00018143,2]
[373886815,1753139445610,-348.63961372,0.00018143,2]
[373886817,1753139445620,-460.0,0.00018143,2]
[373886819,1753139445630,-982.68,0.00018143,2]
[373886821,1753139445640,-460.0,0.00018143,2]
[373886823,1753139445650,-151.0,0.00018143,2]
[373886825,1753139445659,-460.0,0.00018143,2]
[373886827,1753139445668,-460.0,0.00018143,2]
[373886829,1753139445678,-460.0,0.00018143,2]
[373886831,1753139445687,-609.11854212,0.00018143,2]
[373886833,1753139445698,-460.0,0.00018143,2]
[373886835,1753139445708,-460.0,0.00018143,2]
[373886837,1753139445717,-811.79,0.00018143,2]
[373886839,1753139445727,-459.0121137,0.00018143,2]
[373886841,1753139445738,-773.27,0.00018143,2]
[373886844,1753139445748,-505.34,0.00018143,2]
[373886846,1753139445757,-460.0,0.00018143,2]
[373886849,1753139445766,-460.0,0.00018143,2]
[373886851,1753139445775,-1293.62,0.00018143,2]
[373886853,1753139445785,-460.0,0.00018144,2]
[373886855,1753139445794,-460.0,0.00018144,2]
[373886857,1753139445804,-460.0,0.00018144,2]
[373886859,1753139445813,-460.0,0.00018144,2]
[373886861,1753139445827,-460.0,0.00018144,2]
[373886863,1753139445837,-460.0,0.00018144,2]
[373886865,1753139445846,-460.0,0.00018144,2]
[373886867,1753139445855,-460.0,0.00018144,2]
[373886869,1753139445865,-694.46,0.00018144,2]
[373886871,1753139445875,-641.97,0.00018144,2]
[373886873,1753139445885,-1451.97,0.00018144,2]
[373886875,1753139445894,-460.0,0.00018144,2]
[373886877,1753139445905,-460.0,0.00018144,2]
[373886879,1753139445915,-460.0,0.00018144,2]
[373886881,1753139445924,-472.94,0.00018144,2]
[373886883,1753139445933,-686.62,0.00018144,2]
[373886885,1753139445942,-460.0,0.00018145,2]
[373886887,1753139445951,-794.14,0.00018145,2]
[373886889,1753139445960,-460.0,0.00018145,2]
[373886891,1753139445970,-153.57597038,0.00018145,2]
[373886893,1753139445978,-460.0,0.00018145,2]
[373886895,1753139445988,-460.0,0.00018145,2]
[373886897,1753139445998,-460.0,0.00018145,2]
[373886899,1753139446007,-460.0,0.00018145,2]
[373886901,1753139446016,-460.0,0.00018145,2]
[373886903,1753139446026,-956.21,0.00018145,2]
[373886905,1753139446036,-460.0,0.00018145,2]
[373886907,1753139446046,-460.0,0.00018145,2]
[373886909,1753139446055,-151.0,0.00018145,2]
[373886911,1753139446065,-151.0,0.00018145,2]
[373886913,1753139446074,-500.0,0.00018145,2]
[373886915,1753139446083,-460.0,0.00018145,2]
[373886917,1753139446092,-460.0,0.00018145,2]
[373886919,1753139446103,-460.0,0.00018145,2]
[373886921,1753139446111,-460.0,0.00018145,2]
[373886923,1753139446121,-151.0,0.00018145,2]
[373886925,1753139446131,-460.0,0.00018146,2]
[373886927,1753139446140,-460.0,0.00018146,2]
[373886929,1753139446149,-460.0,0.00018146,2]
[373886931,1753139446159,-460.0,0.00018146,2]
[373886933,1753139446168,-460.0,0.00018146,2]
[373886935,1753139446178,-473.98208772,0.00018146,2]
[373886937,1753139446188,-460.0,0.00018146,2]
[373886939,1753139446197,-460.0,0.00018146,2]
[373886941,1753139446207,-460.0,0.00018146,2]
[373886944,1753139446216,-460.0,0.00018146,2]
[373886946,1753139446226,-460.0,0.00018146,2]
[373886947,1753139446235,-460.0,0.00018146,2]
[373886949,1753139446245,-151.0,0.00018146,2]
[373886951,1753139446256,-151.0,0.00018146,2]
[373886954,1753139446266,-460.0,0.00018146,2]
[373886955,1753139446276,-460.0,0.00018146,2]
[373886957,1753139446286,-290.74670208,0.00018146,2]
[373886959,1753139446296,-460.0,0.00018146,2]
[373886961,1753139446306,-5403.16,0.00018146,2]
[373886963,1753139446315,-1332.35,0.00018146,2]
[373886965,1753139446324,-460.0,0.00018146,2]
[373886967,1753139446334,-168.0,0.00018154,2]
[373886969,1753139446343,-500.0,0.00018162,2]
[373886971,1753139446352,-458.59210166,0.00018163,2]
[373886973,1753139446362,-460.0,0.00018163,2]
[373886975,1753139446371,-534.349583,0.00018163,2]
[373886977,1753139446381,-460.0,0.00018163,2]
[373886979,1753139446391,-500.0,0.00018163,2]
[373886981,1753139446400,-1928.03,0.00018163,2]
[373886983,1753139446410,-1724.96,0.00018163,2]
[373886985,1753139446419,-935.76,0.00018163,2]
[373886988,1753139446429,-460.0,0.00018163,2]
[373886990,1753139446438,-1567.89,0.00018163,2]
[373886992,1753139446448,-3077.94,0.00018163,2]
[373886994,1753139446457,-460.0,0.00018163,2]
[373886995,1753139446467,-151.0,0.00018163,2]
[373886998,1753139446476,-151.0,0.00018163,2]
[373886999,1753139446485,-3691.57397881,0.00018164,2]
[373887001,1753139446495,-500.0,0.00018164,2]
[373887003,1753139446505,-2419.85,0.00018164,2]
[373887005,1753139446514,-594.18,0.00018164,2]
[373887007,1753139446523,-460.0,0.00018164,2]
[373887010,1753139446533,-1300.4,0.00018164,2]
[373887011,1753139446542,-1869.06,0.00018165,2]
[373887013,1753139446551,-460.0,0.00018165,2]
[373887015,1753139446561,-460.0,0.00018165,2]
[373887017,1753139446571,-151.0,0.00018166,2]
[373887020,1753139446580,-151.0,0.00018166,2]
[373887022,1753139446590,-151.0,0.00018166,2]
[373887024,1753139446599,-151.0,0.00018166,2]
[373887025,1753139446610,-500.0,0.00018166,2]
[373887028,1753139446619,-151.0,0.00018166,2]
[373887029,1753139446629,-151.0,0.00018166,2]
[373887032,1753139446639,-151.0,0.00018166,2]
[373887040,1753139446716,-151.0,0.00018166,2]
[373887043,1753139446735,-151.0,0.00018168,2]
[373887045,1753139446745,-500.0,0.00018168,2]
[373887046,1753139446754,-500.0,0.00018173,2]
[373887049,1753139446764,-500.33860643,0.00018173,2]
[373887051,1753139446774,-500.0,0.00018173,2]
[373887053,1753139446784,-500.0,0.00018173,2]
[373887055,1753139446796,-528.15372949,0.00018227,2]
[373887057,1753139446806,-900.0,0.00018235,2]
[373887059,1753139446817,-306.0,0.00018247,2]
[373887061,1753139446829,-151.0,0.000183,2]
[373887062,1753139446839,-460.0,0.00018316,2]
[373887064,1753139446848,-500.0,0.0001832,2]
[373887066,1753139446858,-7714.86564251,0.00018383,2]
[373887068,1753139446868,-200.0,0.000184,2]
[373887070,1753139446877,-150.0,0.00018409,2]
[373887072,1753139446886,-3390.2,0.00018416,2]
[373887074,1753139446897,-677.12,0.00018416,2]
[373887076,1753139446906,-460.0,0.00018416,2]
[373887078,1753139446915,-460.0,0.00018416,2]
[373887080,1753139446924,-2776.99,0.00018416,2]
[373887082,1753139446933,-460.0,0.00018416,2]
[373887084,1753139446943,-460.0,0.00018416,2]
[373887086,1753139446952,-1434.52,0.00018416,2]
[373887088,1753139446961,-460.0,0.00018416,2]
[373887090,1753139446970,-509.94,0.00018416,2]
[373887092,1753139446979,-497.74024295,0.00018416,2]
[373887094,1753139446989,-460.0,0.00018416,2]
[373887096,1753139447000,-856.14,0.00018416,2]
[373887098,1753139447009,-460.0,0.00018417,2]
[373887100,1753139447018,-460.0,0.00018417,2]
[373887102,1753139447027,-460.0,0.00018417,2]
[373887104,1753139447036,-460.0,0.00018417,2]
[373887106,1753139447045,-460.0,0.00018417,2]
[373887108,1753139447054,-460.0,0.00018417,2]
[373887110,1753139447063,-460.0,0.00018417,2]
[373887112,1753139447073,-460.0,0.00018417,2]
[373887114,1753139447082,-460.0,0.00018417,2]
[373887115,1753139447093,-460.0,0.00018417,2]
[373887117,1753139447103,-151.0,0.00018417,2]
[373887119,1753139447112,-276.59558912,0.00018417,2]
[373887121,1753139447122,-151.0,0.00018417,2]
[373887123,1753139447131,-5053.42,0.00018417,2]
[373887125,1753139447140,-460.0,0.00018417,2]
[373887127,1753139447150,-460.0,0.00018417,2]
[373887129,1753139447159,-460.0,0.00018417,2]
[373887131,1753139447168,-460.0,0.00018417,2]
[373887133,1753139447178,-460.0,0.00018417,2]
[373887135,1753139447187,-460.0,0.00018417,2]
[373887137,1753139447197,-460.0,0.00018417,2]
[373887139,1753139447206,-460.0,0.00018417,2]
[373887141,1753139447215,-460.0,0.00018417,2]
[373887143,1753139447224,-716.6,0.00018417,2]
[373887145,1753139447234,-460.0,0.00018417,2]
[373887147,1753139447243,-460.0,0.00018417,2]
[373887149,1753139447253,-460.0,0.00018417,2]
[373887150,1753139447262,-460.0,0.00018417,2]
[373887151,1753139447271,-475.97,0.00018417,2]
[373887152,1753139447281,-460.0,0.00018417,2]
[373887153,1753139447290,-2571.87,0.00018417,2]
[373887154,1753139447299,-735.27,0.00018417,2]
[373887155,1753139447308,-151.0,0.00018417,2]
[373887156,1753139447320,-460.0,0.00018417,2]
[373887158,1753139447339,-982.68,0.00018417,2]
[373887161,1753139447355,-460.0,0.00018417,2]
[373887163,1753139447371,-460.0,0.00018417,2]
[373887166,1753139447388,-460.0,0.00018417,2]
[373887169,1753139447405,-460.0,0.00018417,2]
[373887172,1753139447423,-460.0,0.00018417,2]
[373887175,1753139447438,-460.0,0.00018417,2]
[373887177,1753139447453,-811.79,0.00018417,2]
[373887180,1753139447470,-773.27,0.00018417,2]
[373887183,1753139447483,-505.34,0.00018417,2]
[373887185,1753139447498,-460.0,0.00018417,2]
[373887188,1753139447513,-460.0,0.00018417,2]
[373887191,1753139447528,-1293.62,0.00018417,2]
[373887193,1753139447547,-460.0,0.00018418,2]
[373887196,1753139447562,-460.0,0.00018418,2]
[373887198,1753139447573,-151.0,0.00018418,2]
[373887201,1753139447590,-460.0,0.00018418,2]
[373887204,1753139447605,-460.0,0.00018418,2]
[373887206,1753139447618,-460.0,0.00018418,2]
[373887209,1753139447635,-460.0,0.00018418,2]
[373887211,1753139447647,-460.0,0.00018418,2]
[373887214,1753139447660,-460.0,0.00018418,2]
[373887216,1753139447673,-694.46,0.00018418,2]
[373887218,1753139447687,-641.97,0.00018418,2]
[373887221,1753139447700,-1451.97,0.00018418,2]
[373887223,1753139447713,-460.0,0.00018418,2]
[373887226,1753139447726,-460.0,0.00018418,2]
[373887228,1753139447739,-393.66112447,0.00018418,2]
[373887231,1753139447752,-472.94,0.00018418,2]
[373887233,1753139447765,-686.62,0.00018418,2]
[373887235,1753139447778,-151.0,0.00018419,2]
[373887238,1753139447792,-151.300379,0.00018419,2]
[373887240,1753139447806,-460.0,0.00018419,2]
[373887243,1753139447821,-151.0,0.00018419,2]